bitfinex/quotes_BTCUSD_20250822
["timestamp","ask_amount","ask_price","bid_price","bid_amount"]
[1755847882379,0.54845145,113410.0,113400.0,0.60185377]
[1755847882804,0.54845145,113410.0,113400.0,0.59985377]
[1755847883006,0.21179573,113410.0,113400.0,0.59885377]
[1755847883151,0.54845145,113410.0,113400.0,0.59985377]
[1755847883352,0.54845145,113410.0,113400.0,0.59885377]
[1755847883868,0.54845145,113410.0,113400.0,0.59985377]
[1755847884271,0.21179573,113410.0,113400.0,0.60185377]
[1755847884475,0.54845145,113410.0,113400.0,0.60185377]
[1755847885298,0.21179573,113410.0,113400.0,0.67035176]
[1755847885725,0.54845145,113410.0,113400.0,0.67035176]
[1755847886994,0.21179573,113410.0,113400.0,0.67035176]
[1755847887218,0.54845145,113410.0,113400.0,0.67035176]
[1755847888647,0.20286429,113410.0,113400.0,0.67035176]
[1755847888846,0.53952001,113410.0,113400.0,0.67035176]
[1755847889847,0.53952001,113410.0,113400.0,0.60185377]
[1755847890625,0.5485655,113410.0,113400.0,0.60185377]
[1755847891246,0.20286429,113410.0,113400.0,0.60185377]
[1755847891454,0.53952001,113410.0,113400.0,0.60185377]
[1755847893625,0.20286429,113410.0,113400.0,0.60185377]
[1755847893825,0.53952001,113410.0,113400.0,0.60185377]
[1755847893946,0.53952001,113410.0,113400.0,0.61936286]
[1755847896635,0.53952001,113410.0,113400.0,0.61924286]
[1755847897053,0.53952001,113410.0,113400.0,0.44689377]
[1755847897266,0.53952001,113410.0,113400.0,0.60173377]
[1755847901726,0.20286429,113410.0,113400.0,0.60173377]
[1755847901939,0.53952001,113410.0,113400.0,0.60173377]
[1755847902143,0.53952001,113410.0,113400.0,0.61023377]
[1755847902346,0.53952001,113410.0,113400.0,0.68264168]
[1755847904301,0.20286429,113410.0,113400.0,0.68264168]
[1755847904520,0.53952001,113410.0,113400.0,0.68264168]
[1755847906899,0.20286429,113410.0,113400.0,0.68264168]
[1755847907099,0.53952001,113410.0,113400.0,0.68264168]
[1755847911506,0.20286429,113410.0,113400.0,0.68264168]
[1755847911706,0.53952001,113410.0,113400.0,0.68264168]
[1755847911909,0.20286429,113410.0,113400.0,0.68264168]
[1755847912075,0.026513,113410.0,113400.0,0.68264168]
[1755847912274,0.36316872,113410.0,113400.0,0.68264168]
[1755847914528,0.53952001,113410.0,113400.0,0.68264168]
[1755847916070,0.53952001,113410.0,113400.0,0.68067168]
[1755847916668,0.53952001,113410.0,113400.0,0.68282168]
[1755847918231,0.87617573,113410.0,113400.0,0.58772475]
[1755847918916,0.87617573,113410.0,113400.0,0.32102475]
[1755847921054,0.90593312,113410.0,113400.0,0.32102475]
[1755847921472,0.87617573,113410.0,113400.0,0.32102475]
[1755847922093,0.53952001,113410.0,113400.0,0.32102475]
[1755847922503,0.53952001,113410.0,113400.0,0.31252475]
[1755847922950,0.20286429,113410.0,113400.0,0.31252475]
[1755847923161,0.53952001,113410.0,113400.0,0.31252475]
[1755847924232,0.20286429,113410.0,113400.0,0.34778083]
[1755847924410,0.53952001,113410.0,113400.0,0.34778083]
[1755847924860,0.53952001,113410.0,113400.0,0.61448083]
[1755847925075,0.20286429,113410.0,113400.0,0.61448083]
[1755847925288,0.53952001,113410.0,113400.0,0.61448083]
[1755847925704,0.53952001,113410.0,113400.0,0.57922475]
[1755847925893,0.20286429,113410.0,113400.0,0.57922475]
[1755847926100,0.53952001,113410.0,113400.0,0.57922475]
[1755847926551,0.53952001,113410.0,113400.0,0.58438475]
[1755847927625,0.20286429,113410.0,113400.0,0.58438475]
[1755847927808,0.53952001,113410.0,113400.0,0.58438475]
[1755847928243,0.53952001,113410.0,113400.0,0.6419468]
[1755847930560,0.33665572,113410.0,113400.0,0.6419468]
[1755847930773,0.51300701,113410.0,113400.0,0.6419468]
[1755847931451,0.53952301,113410.0,113400.0,0.6419468]
[1755847931662,0.20286729,113410.0,113400.0,0.6419468]
[1755847931800,0.20286729,113410.0,113400.0,0.4871868]
[1755847932023,0.53952301,113410.0,113400.0,0.6418668]
[1755847932568,0.20286729,113410.0,113400.0,0.65931582]
[1755847932934,0.53952301,113410.0,113400.0,0.65931582]
[1755847933743,0.20286729,113410.0,113400.0,0.65931582]
[1755847934354,0.53952301,113410.0,113400.0,0.65931582]
[1755847937857,0.20286729,113410.0,113400.0,0.65931582]
[1755847939518,0.53952301,113410.0,113400.0,0.65931582]
[1755847940272,0.51300701,113410.0,113400.0,0.65931582]
[1755847941079,0.17635129,113410.0,113400.0,0.65931582]
[1755847941284,0.51300701,113410.0,113400.0,0.65931582]
[1755847941891,0.17635129,113410.0,113400.0,0.65931582]
[1755847942150,0.51300701,113410.0,113400.0,0.65931582]
[1755847943052,0.17635129,113410.0,113400.0,0.65931582]
[1755847943276,0.51300701,113410.0,113400.0,0.65931582]
[1755847943902,0.53952101,113410.0,113400.0,0.65931582]
[1755847945831,0.20286529,113410.0,113400.0,0.65931582]
[1755847946467,0.53952101,113410.0,113400.0,0.65931582]
[1755847946911,0.20286529,113410.0,113400.0,0.65931582]
[1755847947084,0.53952101,113410.0,113400.0,0.65931582]
[1755847947275,0.20286529,113410.0,113400.0,0.65931582]
[1755847947492,0.53952101,113410.0,113400.0,0.65931582]
[1755847950029,0.53952101,113410.0,113400.0,0.60175377]
[1755847951967,0.20286529,113410.0,113400.0,0.60175377]
[1755847952186,0.53952101,113410.0,113400.0,0.60175377]
[1755847953426,0.53952101,113410.0,113400.0,0.59659377]
[1755847953831,0.53952101,113410.0,113400.0,0.59958377]
[1755847955110,0.51300701,113410.0,113400.0,0.59958377]
[1755847957957,0.51300701,113410.0,113400.0,0.58213475]
[1755847958159,0.51300701,113410.0,113400.0,0.57914475]
[1755847958360,0.53952101,113410.0,113400.0,0.57914475]
[1755847960387,0.87617673,113410.0,113400.0,0.57914475]
[1755847961911,0.90593412,113410.0,113400.0,0.57914475]
[1755847962064,0.87617673,113410.0,113400.0,0.57914475]
[1755847964541,0.87617673,113410.0,113400.0,0.33758]
[1755847964736,0.90593412,113410.0,113400.0,0.49202]
[1755847964876,0.87617673,113410.0,113400.0,0.49202]
[1755847965320,1.21617673,113410.0,113400.0,0.49002]
[1755847965522,0.54286529,113410.0,113400.0,0.49002]
[1755847965699,1.21617673,113410.0,113400.0,0.49002]
[1755847966094,1.21617673,113410.0,113400.0,0.48902]
[1755847966298,1.55283245,113410.0,113400.0,4e-05]
[1755847966498,1.60943568,113410.0,113400.0,0.15448]
[1755847966850,1.57189895,113410.0,113400.0,0.15444]
[1755847967252,1.18969383,113390.0,113380.0,0.06784]
[1755847967412,1.18969383,113390.0,113380.0,0.22224]
[1755847967973,1.21621783,113390.0,113380.0,0.22224]
[1755847976781,0.17639795,113380.0,113360.0,0.40497804]
[1755847977181,1.19072506,113370.0,113360.0,0.1581469]
[1755847977414,1.18972495,113370.0,113360.0,0.06832215]
[1755847977642,1.21625295,113370.0,113360.0,0.06832215]
[1755847978090,1.21625295,113370.0,113360.0,0.22264215]
[1755847978306,1.21625295,113370.0,113360.0,0.22558215]
[1755847979718,1.21625295,113370.0,113360.0,0.22658215]
[1755847980343,1.21625295,113370.0,113360.0,0.22865215]
[1755847980525,1.21625295,113370.0,113360.0,0.22758215]
[1755847981032,1.21625295,113370.0,113360.0,0.22464215]
[1755847982891,1.21625295,113370.0,113360.0,0.22758215]
[1755847983307,0.87959723,113370.0,113360.0,0.22965215]
[1755847985619,0.54294151,113370.0,113360.0,0.22965215]
[1755847985857,0.87959723,113370.0,113360.0,0.22965215]
[1755847986401,0.87988941,113370.0,113360.0,0.22965215]
[1755847987187,1.21683731,113370.0,113360.0,0.22965215]
[1755847987416,0.87988941,113370.0,113360.0,0.22965215]
[1755847987821,1.21683731,113370.0,113360.0,0.22965215]
[1755847990278,0.87988941,113370.0,113360.0,0.22965215]
[1755847991991,0.54294151,113370.0,113360.0,0.22965215]
[1755847992193,0.87988941,113370.0,113360.0,0.22965215]
[1755847995337,0.54294151,113370.0,113360.0,0.22965215]
[1755847995545,0.87988941,113370.0,113360.0,0.22965215]
[1755847995753,1.21683731,113370.0,113360.0,0.22965215]
[1755847996460,1.21683731,113370.0,113360.0,0.22758215]
[1755847997098,1.21683731,113370.0,113360.0,0.22965215]
[1755847998693,1.23064714,113370.0,113360.0,0.22965215]
[1755847999137,1.21683731,113370.0,113360.0,0.22965215]
[1755847999894,1.21683731,113370.0,113360.0,0.22758215]
[1755848000994,0.54294151,113370.0,113360.0,0.22973215]
[1755848001201,1.21683731,113370.0,113360.0,0.22973215]
[1755848001404,0.87988941,113370.0,113360.0,0.22973215]
[1755848002236,0.89369912,113370.0,113360.0,0.22973215]
[1755848008428,0.8937032,113370.0,113360.0,0.22945215]
[1755848009150,1.23065518,113370.0,113360.0,0.15652215]
[1755848010093,1.26041257,113370.0,113360.0,0.15652215]
[1755848010297,1.26041257,113370.0,113360.0,0.15648215]
[1755848010507,1.27949952,113370.0,113360.0,0.15648215]
[1755848010932,1.27949952,113370.0,113360.0,0.00148215]
[1755848011135,1.43549952,113370.0,113360.0,0.00148215]
[1755848011350,1.43349952,113370.0,113360.0,0.00148215]
[1755848011918,1.43349952,113370.0,113360.0,0.00048215]
[1755848014356,1.41441257,113370.0,113360.0,0.00048215]
[1755848014786,1.46033326,113370.0,113360.0,0.00048215]
[1755848014985,1.43348742,113370.0,113360.0,0.00048215]
[1755848015546,1.41441257,113370.0,113360.0,0.00048215]
[1755848015958,0.51644464,113350.0,113340.0,0.49169]
[1755848016173,0.85339662,113350.0,113340.0,0.22728437]
[1755848016325,0.85339662,113350.0,113340.0,0.15944437]
[1755848016736,0.89374063,113350.0,113340.0,0.15944437]
[1755848017151,1.23069261,113350.0,113340.0,0.15725437]
[1755848018163,1.26928539,113350.0,113340.0,0.15406437]
[1755848018386,1.26928539,113350.0,113340.0,0.15606437]
[1755848018783,1.26928539,113350.0,113340.0,0.00214437]
[1755848019361,1.26928539,113350.0,113340.0,0.00114437]
[1755848020464,1.26970045,113350.0,113340.0,0.00114437]
[1755848021516,1.23994306,113350.0,113340.0,0.00433437]
[1755848021721,1.23994306,113350.0,113340.0,0.00114437]
[1755848022875,0.90278355,113350.0,113340.0,0.00114437]
[1755848024317,0.90278355,113350.0,113340.0,0.00433437]
[1755848027492,0.90278355,113350.0,113340.0,0.00635437]
[1755848028230,0.90278355,113350.0,113340.0,0.00114437]
[1755848028442,1.23994306,113350.0,113340.0,0.00114437]
[1755848033331,1.23994306,113350.0,113340.0,0.00410437]
[1755848033543,1.23994306,113350.0,113340.0,0.00612437]
[1755848033757,0.90278355,113350.0,113340.0,0.00612437]
[1755848033960,0.90227756,113350.0,113340.0,0.00612437]
[1755848038961,0.56511805,113350.0,113340.0,0.00612437]
[1755848039393,0.22511805,113350.0,113340.0,0.09300912]
[1755848039608,0.22511805,113350.0,113340.0,0.15167058]
[1755848039860,0.22511805,113350.0,113340.0,0.09300912]
[1755848040086,0.56511805,113350.0,113340.0,0.09300912]
[1755848040772,0.90227756,113350.0,113340.0,0.09300912]
[1755848040980,0.90227756,113350.0,113340.0,0.09200912]
[1755848041643,0.90227756,113350.0,113340.0,0.09300912]
[1755848041854,0.90227756,113350.0,113340.0,0.09400912]
[1755848043190,0.90227756,113350.0,113340.0,0.36070912]
[1755848044340,0.90212448,113350.0,113340.0,0.36070912]
[1755848052614,0.56511805,113350.0,113340.0,0.36070912]
[1755848052832,0.86364361,113350.0,113340.0,0.41220403]
[1755848053062,0.86228646,113350.0,113340.0,0.41220403]
[1755848053293,0.52528003,113350.0,113340.0,0.41220403]
[1755848053516,0.86228646,113350.0,113340.0,0.41220403]
[1755848054813,0.52528003,113350.0,113340.0,0.41220403]
[1755848055013,0.86228646,113350.0,113340.0,0.41220403]
[1755848056028,0.86228646,113350.0,113340.0,0.36070912]
[1755848056238,0.52528003,113350.0,113340.0,0.36070912]
[1755848056657,0.86228646,113350.0,113340.0,0.36070912]
[1755848057949,0.52528003,113350.0,113340.0,0.36070912]
[1755848058171,0.86228646,113350.0,113340.0,0.36070912]
[1755848059144,0.52528003,113350.0,113340.0,0.36070912]
[1755848059347,0.86228646,113350.0,113340.0,0.09400912]
[1755848060455,0.52528003,113350.0,113340.0,0.11883403]
[1755848060646,0.52528003,113350.0,113340.0,0.09400912]
[1755848060852,0.86228646,113350.0,113340.0,0.09400912]
[1755848064102,0.88881646,113350.0,113340.0,0.09400912]
[1755848064305,0.55181003,113350.0,113340.0,0.09400912]
[1755848064514,0.88881646,113350.0,113340.0,0.09400912]
[1755848068634,0.55181003,113350.0,113340.0,0.09400912]
[1755848068841,0.88881646,113350.0,113340.0,0.09400912]
[1755848069798,0.55181003,113350.0,113340.0,0.09400912]
[1755848070002,0.88881646,113350.0,113340.0,0.09400912]
[1755848071299,0.88381646,113350.0,113340.0,0.09400912]
[1755848073410,0.88381646,113350.0,113340.0,0.24724912]
[1755848075691,0.85728646,113350.0,113340.0,0.24724912]
[1755848078579,0.52028003,113350.0,113340.0,0.24724912]
[1755848078778,0.85728646,113350.0,113340.0,0.24724912]
[1755848081011,1.22405028,113350.0,113340.0,0.24226912]
[1755848081650,0.88704385,113350.0,113340.0,0.24226912]
[1755848081864,1.25058128,113350.0,113340.0,0.00214437]
[1755848082076,1.25058128,113350.0,113340.0,0.15526437]
[1755848082511,1.22082389,113350.0,113340.0,0.15526437]
[1755848083236,0.54681103,113350.0,113340.0,0.15526437]
[1755848083445,1.22082389,113350.0,113340.0,0.15526437]
[1755848084028,0.88381746,113350.0,113340.0,0.20460681]
[1755848084198,0.88381746,113350.0,113340.0,0.20778681]
[1755848084606,0.88381746,113350.0,113340.0,0.15844437]
[1755848085783,0.54681103,113350.0,113340.0,0.15844437]
[1755848085974,0.88381746,113350.0,113340.0,0.15844437]
[1755848087259,0.54681103,113350.0,113340.0,0.15844437]
[1755848087479,0.88381746,113350.0,113340.0,0.15844437]
[1755848088545,0.54681103,113350.0,113340.0,0.16059437]
[1755848088730,0.88381746,113350.0,113340.0,0.16059437]
[1755848089081,0.54681103,113350.0,113340.0,0.16059437]
[1755848089300,0.88381746,113350.0,113340.0,0.16059437]
[1755848090548,0.54681103,113350.0,113340.0,0.16059437]
[1755848090741,0.88381746,113350.0,113340.0,0.16059437]
[1755848093449,0.88381746,113350.0,113340.0,0.21015181]
[1755848095504,0.88381746,113350.0,113340.0,0.16059437]
[1755848100158,0.54681103,113350.0,113340.0,0.16059437]
[1755848100729,0.88381746,113350.0,113340.0,0.16059437]
[1755848101589,0.85728646,113350.0,113340.0,0.24968487]
[1755848101793,0.18028003,113350.0,113340.0,0.58448555]
[1755848101985,0.17644464,113350.0,113340.0,0.33434877]
[1755848102467,0.52726198,113360.0,113340.0,0.95550422]
[1755848102683,0.5134496,113360.0,113350.0,0.09003475]
[1755848102899,0.17644317,113360.0,113350.0,0.0943903]
[1755848103126,0.18523887,113360.0,113350.0,0.09218475]
[1755848103348,0.17644317,113360.0,113350.0,0.18125995]
[1755848103567,0.17644317,113360.0,113350.0,0.80020985]
[1755848103772,0.17644317,113360.0,113350.0,0.37633377]
[1755848104819,0.17644317,113360.0,113350.0,0.7133402]
[1755848105029,0.52224061,113370.0,113350.0,0.37733377]
[1755848105253,0.17641351,113370.0,113360.0,0.22603536]
[1755848105459,0.17641351,113370.0,113360.0,0.75191719]
[1755848105747,0.52213958,113380.0,113360.0,0.73446817]
[1755848105881,0.52213958,113380.0,113370.0,0.08688475]
[1755848106094,0.52213958,113380.0,113370.0,0.09218475]
[1755848106536,0.52213958,113380.0,113370.0,0.09438991]
[1755848106936,0.85914601,113380.0,113370.0,0.09438991]
[1755848107383,0.18513315,113380.0,113370.0,0.09438991]
[1755848107595,0.52213958,113380.0,113370.0,0.09438991]
[1755848108155,0.2117245,113390.0,113370.0,0.64151974]
[1755848108156,0.026523,113390.0,113370.0,0.64151974]
[1755848108368,0.18569916,113400.0,113370.0,0.64151974]
[1755848108369,0.18569916,113400.0,113380.0,0.49291643]
[1755848108592,0.52270559,113400.0,113390.0,0.16226952]
[1755848108796,0.52220559,113400.0,113390.0,0.16226952]
[1755848109012,0.52220559,113400.0,113390.0,0.16006475]
[1755848109223,0.52220559,113400.0,113390.0,0.19134722]
[1755848109633,0.85969408,113400.0,113390.0,0.19134722]
[1755848110517,0.52241299,113400.0,113390.0,0.19134722]
[1755848111335,0.53110962,113400.0,113390.0,0.19134722]
[1755848111571,0.19437785,113400.0,113390.0,0.19134722]
[1755848111787,0.53110962,113400.0,113390.0,0.19134722]
[1755848113344,0.53110962,113400.0,113390.0,0.16006475]
[1755848114167,0.19437785,113400.0,113390.0,0.16006475]
[1755848114379,0.53110962,113400.0,113390.0,0.16006475]
[1755848120081,0.53110962,113400.0,113390.0,0.42676475]
[1755848122025,0.19437785,113400.0,113390.0,0.42676475]
[1755848122262,0.53110962,113400.0,113390.0,0.48471723]
[1755848126974,0.18568122,113400.0,113390.0,0.48471723]
[1755848128008,0.19479498,113400.0,113390.0,0.48471723]
[1755848128224,0.19479498,113400.0,113390.0,0.48571723]
[1755848129526,0.53152675,113400.0,113390.0,0.48571723]
[1755848132453,0.19479498,113400.0,113390.0,0.48571723]
[1755848132665,0.53149181,113400.0,113390.0,0.48571723]
[1755848133512,0.18568122,113400.0,113390.0,0.50316625]
[1755848133717,0.52337805,113400.0,113390.0,0.44521377]
[1755848133927,0.18668122,113400.0,113390.0,0.44521377]
[1755848134136,0.52237805,113400.0,113390.0,0.44521377]
[1755848134342,0.52237805,113400.0,113390.0,0.44621377]
[1755848134550,0.52237805,113400.0,113390.0,0.44521377]
[1755848134757,0.52237805,113400.0,113390.0,0.44721377]
[1755848135442,0.18568122,113400.0,113390.0,0.44721377]
[1755848135652,0.52237805,113400.0,113390.0,0.44721377]
[1755848136840,0.19470065,113400.0,113390.0,0.44721377]
[1755848137040,0.53139748,113400.0,113390.0,0.44721377]
[1755848139190,0.52237805,113400.0,113390.0,0.53408342]
[1755848139806,0.53140281,113400.0,113390.0,0.53408342]
[1755848140170,0.00048206,113400.0,113390.0,0.53408342]
[1755848140392,0.00048206,113400.0,113390.0,0.87078025]
[1755848140605,0.00048206,113400.0,113390.0,0.53408342]
[1755848140825,0.1768489,113400.0,113390.0,0.53408342]
[1755848141862,0.00048206,113400.0,113390.0,0.87078025]
[1755848142895,0.1768489,113400.0,113390.0,0.53408342]
[1755848143110,0.1768489,113400.0,113390.0,0.87078025]
[1755848143763,0.1768489,113400.0,113390.0,0.53408342]
[1755848144228,0.1768489,113400.0,113390.0,0.54258342]
[1755848144927,0.1768489,113400.0,113390.0,0.87928025]
[1755848145978,0.1768489,113400.0,113390.0,0.54258342]
[1755848146286,0.1768489,113400.0,113390.0,0.87928025]
[1755848146468,0.00048206,113400.0,113390.0,0.87928025]
[1755848146599,0.1768489,113400.0,113390.0,0.69478342]
[1755848146825,0.51354573,113400.0,113390.0,0.69478342]
[1755848147861,0.1768489,113400.0,113390.0,0.69478342]
[1755848149968,0.51354573,113400.0,113390.0,0.54258342]
[1755848150175,0.51354573,113400.0,113390.0,0.69474342]
[1755848151098,0.85024256,113400.0,113390.0,0.69474342]
[1755848152223,0.85024256,113400.0,113390.0,0.60568377]
[1755848152438,0.85024256,113400.0,113390.0,0.60253377]
[1755848152684,0.85024256,113400.0,113390.0,0.58508475]
[1755848154409,0.85043918,113400.0,113390.0,0.58508475]
[1755848158104,0.1768489,113400.0,113390.0,0.58508475]
[1755848158323,0.85043918,113400.0,113390.0,0.58508475]
[1755848159368,0.88019657,113400.0,113390.0,0.58500475]
[1755848159582,0.85043918,113400.0,113390.0,0.58500475]
[1755848159788,0.85043918,113400.0,113390.0,0.49812]
[1755848160446,0.1768489,113400.0,113390.0,0.49812]
[1755848160659,0.1768489,113400.0,113390.0,0.50229]
[1755848160867,0.85043918,113400.0,113390.0,0.552519]
[1755848161273,0.51364404,113400.0,113390.0,0.550519]
[1755848161476,0.51364404,113400.0,113390.0,0.50029]
[1755848161688,0.51364404,113400.0,113390.0,0.50129]
[1755848161894,0.85043918,113400.0,113390.0,0.50129]
[1755848162208,0.85043918,113400.0,113390.0,0.50029]
[1755848162422,0.85043918,113400.0,113390.0,0.50229]
[1755848162838,0.85043918,113400.0,113390.0,0.552519]
[1755848163054,0.1906548,113400.0,113390.0,0.37270375]
[1755848163259,0.52744994,113400.0,113390.0,0.37270375]
[1755848163863,0.52744994,113400.0,113390.0,0.37370375]
[1755848164378,0.52744994,113400.0,113390.0,0.32347475]
[1755848166494,0.1906548,113400.0,113390.0,0.32347475]
[1755848166737,0.52744994,113400.0,113390.0,0.32347475]
[1755848168384,0.86424508,113400.0,113390.0,0.32347475]
[1755848168812,0.52744994,113400.0,113390.0,0.31497475]
[1755848170268,0.52744994,113400.0,113390.0,0.32587042]
[1755848170524,0.1906548,113400.0,113390.0,0.32587042]
[1755848170725,0.52744994,113400.0,113390.0,0.32587042]
[1755848171323,0.1906548,113400.0,113390.0,0.32587042]
[1755848171524,0.52744994,113400.0,113390.0,0.32587042]
[1755848172689,0.52744994,113400.0,113390.0,0.31497475]
[1755848172899,0.86424508,113400.0,113390.0,0.31497475]
[1755848173967,0.86424508,113400.0,113390.0,0.31291475]
[1755848174421,0.86418614,113400.0,113390.0,0.31291475]
[1755848179651,0.1906548,113400.0,113390.0,0.31494475]
[1755848179853,0.86418614,113400.0,113390.0,0.37310922]
[1755848181311,0.86418614,113400.0,113390.0,0.31494475]
[1755848182106,0.86418614,113400.0,113390.0,0.58164475]
[1755848185938,0.1906548,113400.0,113390.0,0.58164475]
[1755848186135,0.86418614,113400.0,113390.0,0.58164475]
[1755848186386,0.1906548,113400.0,113390.0,0.58164475]
[1755848186583,0.86418614,113400.0,113390.0,0.58164475]
[1755848190338,0.1906548,113400.0,113390.0,0.58164475]
[1755848190568,0.86418614,113400.0,113390.0,0.58164475]
[1755848191500,0.1906548,113400.0,113390.0,0.58164475]
[1755848191723,0.86418614,113400.0,113390.0,0.58164475]
[1755848191929,0.84989818,113400.0,113390.0,0.63980923]
[1755848195171,0.84989818,113400.0,113390.0,0.58164475]
[1755848196115,0.63951289,113400.0,113390.0,0.57961475]
[1755848196528,0.63951289,113400.0,113390.0,0.58164475]
[1755848197863,0.17636684,113400.0,113390.0,0.58164475]
[1755848198066,0.84989818,113400.0,113390.0,0.58164475]
[1755848199438,0.87641618,113400.0,113390.0,0.58164475]
[1755848202150,0.20288484,113400.0,113390.0,0.58164475]
[1755848202363,0.87641618,113400.0,113390.0,0.58164475]
[1755848202779,0.20288484,113400.0,113390.0,0.58164475]
[1755848202895,0.87641618,113400.0,113390.0,0.63980923]
[1755848203345,0.87641618,113400.0,113390.0,0.58164475]
[1755848212708,0.84989818,113400.0,113390.0,0.58164475]
[1755848216294,0.84989818,113400.0,113390.0,0.42960475]
[1755848216484,0.84989818,113400.0,113390.0,0.58100475]
[1755848216887,0.84989818,113400.0,113390.0,0.58096475]
[1755848218325,0.84989818,113400.0,113390.0,0.42960475]
[1755848218524,0.84989818,113400.0,113390.0,0.57582475]
[1755848218950,0.87641618,113400.0,113390.0,0.57582475]
[1755848219183,0.87641618,113400.0,113390.0,0.42446475]
[1755848219397,0.87641618,113400.0,113390.0,0.57582475]
[1755848220349,0.87641618,113400.0,113390.0,0.57883475]
[1755848220751,0.87641618,113400.0,113390.0,0.58081475]
[1755848222089,0.87641618,113400.0,113390.0,0.57883475]
[1755848223275,0.20288484,113400.0,113390.0,0.58081475]
[1755848223476,0.87641618,113400.0,113390.0,0.58081475]
[1755848223685,0.20288484,113400.0,113390.0,0.58081475]
[1755848223896,0.87641618,113400.0,113390.0,0.64286676]
[1755848224139,0.87641618,113400.0,113390.0,0.58081475]
[1755848225382,0.87641618,113400.0,113390.0,0.57883475]
[1755848226717,0.87641618,113400.0,113390.0,0.58081475]
[1755848228814,0.84989818,113400.0,113390.0,0.58081475]
[1755848231738,0.87641718,113400.0,113390.0,0.58081475]
[1755848232593,0.20288584,113400.0,113390.0,0.64286676]
[1755848232763,0.87641718,113400.0,113390.0,0.64286676]
[1755848233964,0.87641718,113400.0,113390.0,0.58081475]
[1755848245407,0.20288584,113400.0,113390.0,0.58081475]
[1755848245631,0.53965151,113400.0,113390.0,0.58081475]
[1755848246319,0.87641718,113400.0,113390.0,0.58081475]
[1755848247639,0.20288584,113400.0,113390.0,0.58081475]
[1755848248001,0.87641718,113400.0,113390.0,0.58081475]
[1755848248700,0.87641718,113400.0,113390.0,0.60733175]
[1755848248893,0.84989818,113400.0,113390.0,0.67203546]
[1755848249649,0.84989818,113400.0,113390.0,0.60733175]
[1755848251239,0.17636684,113400.0,113390.0,0.60733175]
[1755848251388,0.84989818,113400.0,113390.0,0.60733175]
[1755848254126,0.66965226,113400.0,113390.0,0.60733175]
[1755848254328,0.8460191,113400.0,113390.0,0.60733175]
[1755848254533,0.8460191,113400.0,113390.0,0.67203546]
[1755848256013,0.8725361,113400.0,113390.0,0.58081475]
[1755848256215,0.8725361,113400.0,113390.0,0.57582475]
[1755848257231,0.8725361,113400.0,113390.0,0.57876475]
[1755848257668,0.8725361,113400.0,113390.0,0.57840475]
[1755848258487,0.8725361,113400.0,113390.0,0.58047475]
[1755848259460,0.8725361,113400.0,113390.0,0.59623724]
[1755848260180,0.20288384,113400.0,113390.0,0.59623724]
[1755848260380,0.87641518,113400.0,113390.0,0.59623724]
[1755848261591,0.20288384,113400.0,113390.0,0.62275424]
[1755848261754,0.87641518,113400.0,113390.0,0.62275424]
[1755848262347,0.82144774,113400.0,113390.0,0.62275424]
[1755848262960,0.84989818,113400.0,113390.0,0.62275424]
[1755848263857,0.17636684,113400.0,113390.0,0.62275424]
[1755848264059,0.84989818,113400.0,113390.0,0.62275424]
[1755848266566,0.84989818,113400.0,113390.0,0.60699175]
[1755848272262,0.51313251,113400.0,113390.0,0.60699175]
[1755848272458,0.84989818,113400.0,113390.0,0.60699175]
[1755848273922,0.51313251,113400.0,113390.0,0.60699175]
[1755848274186,0.17636684,113400.0,113390.0,0.60699175]
[1755848274380,0.17636684,113400.0,113390.0,0.67166146]
[1755848274381,0.51313251,113400.0,113390.0,0.67166146]
[1755848274513,0.84989818,113400.0,113390.0,0.67166146]
[1755848274717,0.51313251,113400.0,113390.0,0.67166146]
[1755848276363,0.84989818,113400.0,113390.0,0.67166146]
[1755848277119,0.84989818,113400.0,113390.0,0.60699175]
[1755848278750,0.51313251,113400.0,113390.0,0.60699175]
[1755848278971,0.84989818,113400.0,113390.0,0.60699175]
[1755848279244,0.51313251,113400.0,113390.0,0.60699175]
[1755848280249,0.17636684,113400.0,113390.0,0.60699175]
[1755848280673,0.51313251,113400.0,113390.0,0.60699175]
[1755848281193,0.17636684,113400.0,113390.0,0.60699175]
[1755848281395,0.17636684,113400.0,113390.0,0.65846335]
[1755848281962,0.51313251,113400.0,113390.0,0.65846335]
[1755848282824,0.17636684,113400.0,113390.0,0.65846335]
[1755848284015,0.51313251,113400.0,113390.0,0.65846335]
[1755848284899,0.17636684,113400.0,113390.0,0.65846335]
[1755848285096,0.51313251,113400.0,113390.0,0.65846335]
[1755848285538,0.17636684,113400.0,113390.0,0.65846335]
[1755848285752,0.51313251,113400.0,113390.0,0.65846335]
[1755848286896,0.17636684,113400.0,113390.0,0.65846335]
[1755848287121,0.51313251,113400.0,113390.0,0.65846335]
[1755848287575,0.51313251,113400.0,113390.0,0.50746335]
[1755848287814,0.17636684,113400.0,113390.0,0.65814335]
[1755848288059,0.51313251,113400.0,113390.0,0.65814335]
[1755848288480,0.17636684,113400.0,113390.0,0.65814335]
[1755848288716,0.51313251,113400.0,113390.0,0.65814335]
[1755848289961,0.51313251,113400.0,113390.0,0.62408077]
[1755848295301,0.51313251,113400.0,113390.0,0.62404077]
[1755848295482,0.84989818,113400.0,113390.0,0.62404077]
[1755848297919,0.51313251,113400.0,113390.0,0.62404077]
[1755848298363,0.17636684,113400.0,113390.0,0.62404077]
[1755848298647,0.51313251,113400.0,113390.0,0.71091042]
[1755848300696,0.17636684,113400.0,113390.0,0.71091042]
[1755848300900,0.51313251,113400.0,113390.0,0.71091042]
[1755848303684,0.51313251,113400.0,113390.0,0.70991042]
[1755848306831,0.17636684,113400.0,113390.0,0.70991042]
[1755848307248,0.51313251,113400.0,113390.0,0.70991042]
[1755848308400,0.51313251,113400.0,113390.0,0.70791042]
[1755848308637,0.17636684,113400.0,113390.0,0.71091042]
[1755848309000,0.51313251,113400.0,113390.0,0.71091042]
[1755848309608,0.51313251,113400.0,113390.0,0.71191042]
[1755848310468,0.17636684,113400.0,113390.0,0.71191042]
[1755848310680,0.51313251,113400.0,113390.0,0.71191042]
[1755848312062,0.17636684,113400.0,113390.0,0.71191042]
[1755848312356,0.51313251,113400.0,113390.0,0.71191042]
[1755848314081,0.17636684,113400.0,113390.0,0.71191042]
[1755848314310,0.51313251,113400.0,113390.0,0.71191042]
[1755848314924,0.51313251,113400.0,113390.0,0.62504077]
[1755848316531,0.17636684,113400.0,113390.0,0.62504077]
[1755848316664,0.51313251,113400.0,113390.0,0.62504077]
[1755848318371,0.17636684,113400.0,113390.0,0.62504077]
[1755848318572,0.51313251,113400.0,113390.0,0.62504077]
[1755848318798,0.51313251,113400.0,113390.0,0.71191042]
[1755848321745,0.84989818,113400.0,113390.0,0.71191042]
[1755848322270,0.17636684,113400.0,113390.0,0.71191042]
[1755848322683,0.84989818,113400.0,113390.0,0.71191042]
[1755848323842,0.51313251,113400.0,113390.0,0.71191042]
[1755848324789,0.84989818,113400.0,113390.0,0.71191042]
[1755848325697,0.84989818,113400.0,113390.0,0.62504077]
[1755848327742,0.84989818,113400.0,113390.0,0.35834077]
[1755848328982,0.84989818,113400.0,113390.0,0.33560175]
[1755848329201,0.17636684,113400.0,113390.0,0.33560175]
[1755848329391,0.84989818,113400.0,113390.0,0.33560175]